Cogmind - Beta 17 @@@ ROGUE MODE // 2026.07.22 @ 21:13:43 Player: shockman27 Result: Self-destructed Performance ------------- Evolutions (0) 0 Regions Visited (3) 600 Robots Destroyed (28) 140 Value Destroyed (609) 609 Prototype IDs (1) 20 Alien Tech Used (0) 0 Bonus (5199) 5199 TOTAL SCORE: 6568 Bonus ------- Prayed to X0-1V1 5000 Major X0-1V1 Interference 200 Friendly Fire -1 Cogmind --------- Core Integrity 76/175 Matter 300/300 Energy 250/250 System Corruption 0% Temperature Cool (0) Movement Rolling (120) Ox2 Location -8/Scraptown Parts ------- > --- POWER (1) -------- Ion Engine > --- PROPULSION (2) --- Armored Wheel Armored Wheel > --- UTILITY (2) ------ High-capacity Storage Unit X0-1V1's Piety Tracker > --- WEAPON (2) ------- Shotgun Maul > --- INVENTORY (20) --- Light Treads Light Treads Armored Wheel Armored Wheel Small Matter Pod (50) High-capacity Matter Pod (116) Hardened Light Armor Plating Hardened Light Armor Plating Small Laser Light EM Pulse Cannon Particle Cannon Assault Rifle Assault Rifle Assault Rifle Shotgun Light Cannon Grenade Launcher Mining Laser Peak State ------------ > --- POWER ------------ Ion Engine > --- PROPULSION ------- Armored Wheel Armored Wheel > --- UTILITY ---------- High-capacity Storage Unit X0-1V1's Piety Tracker > --- WEAPON ----------- Shotgun Maul > --- INVENTORY -------- Light Treads Light Treads Armored Wheel Armored Wheel Small Matter Pod High-capacity Matter Pod Hardened Light Armor Plating Hardened Light Armor Plating Small Laser Light EM Pulse Cannon Particle Cannon Assault Rifle Assault Rifle Assault Rifle Shotgun Light Cannon Grenade Launcher Mining Laser [Rating: 25] Favorites ----------- Power Ion Engine Engine Ion Engine Propulsion Light Treads Treads Light Treads Wheel Armored Wheel Utility High-capacity Storage Unit Device X0-1V1's Piety Tracker Storage High-capacity Storage Unit Weapon Shotgun Energy Cannon Light EM Pulse Cannon Ballistic Gun Shotgun Launcher Grenade Launcher Special Weapon Mining Laser Impact Weapon Maul Build | -11 -10 -10 -8 ------- Run | Yrd Mat Sub Scr Slots Evolved . | . . . . Power . | . . . . Propulsion . | . . . . Utility . | . . . . Weapon . | . . . . Parts Attached 19 | 7 7 5 . Power 2 | 1 . 1 . Engine 2 | 1 . 1 . Core . | . . . . Reactor . | . . . . Propulsion 4 | 2 . 2 . Treads 2 | 2 . . . Leg . | . . . . Wheel 2 | . . 2 . Hover . | . . . . Flight . | . . . . Utility 5 | 2 2 1 . Device 3 | 1 1 1 . Storage 2 | 1 1 . . Processor . | . . . . Hackware . | . . . . Protection . | . . . . Artifact . | . . . . Weapon 8 | 2 5 1 . Energy Gun . | . . . . Energy Cannon 1 | . 1 . . Ballistic Gun 4 | 2 2 . . Ballistic Cannon . | . . . . Launcher 1 | . 1 . . Special Weapon 1 | . 1 . . Impact Weapon 1 | . . 1 . Slashing Weapon . | . . . . Piercing Weapon . | . . . . Special Melee Weapon . | . . . . Unidentified Prototypes 1 | . 1 . . Parts Lost 3 | . . 3 . Power 1 | . . 1 . Propulsion 1 | . . 1 . Utility 1 | . . 1 . Weapon . | . . . . Highest Loss Streak 2 | . . 2 . To Critical Strikes . | . . . . Average Backups 15 | 3 13 18 18 Power . | . 1 . . Propulsion 3 | 1 2 4 4 Utility 3 | . 3 4 4 Weapon 8 | 1 7 10 10 Tool/Special . | . . . . Unused Backups 14 | . 2 . 12 Power . | . . . . Propulsion 5 | . 2 . 3 Utility 4 | . . . 4 Weapon 5 | . . . 5 Tool/Special . | . . . . Average Slot Usage (%) 99 | . 100 98 100 Engine 14 | . 14 14 14 Treads 23 | . 28 16 . Wheel 4 | . . 11 28 Device 13 | . 14 12 14 Storage 14 | . 14 14 14 Ballistic Gun 22 | . 27 14 14 Launcher 3 | . . 9 . Impact Weapon 1 | . . 4 14 Peak Build Rating 25 | 7 23 25 25 Average Rating 16 | 5 13 22 25 On Entrance 13 | . 7 23 25 Avg Prop Armor Cover (%) . | . . . . Naked Turns . | . . . . Heaviest Build 52 | 14 52 52 52 Greatest Support 40 | 40 40 40 24 Greatest Overweight (x) 2 | . 1 2 2 Average Overweight (x) 1 | . . 1 2 Largest Inventory Capacity 20 | 8 20 20 20 Average Capacity 17 | 7 16 20 20 Most Carried 20 | 5 20 20 18 Average Carried 15 | 3 14 18 18 Final Capacity 20 | 8 20 20 20 Final Carried 20 | 5 20 18 18 Class Distribution -------------------- 100% | Mutant Dominant Class ---------------- Mutant | -10/Materials Mutant | -10/Subcaves Mutant | -8/Scraptown Resources | -11 -10 -10 -8 ----------- Run | Yrd Mat Sub Scr Matter Collected 1104 | 283 482 220 119 Remotely . | . . . . Salvage Created 644 | 69 530 45 . Parts 35 | 6 28 1 . Haulers Intercepted 2 | . 2 . . Recyclers Shooed 2 | . 2 . . Parts Field Recycled . | . . . . Retrieved Matter . | . . . . Parts Self-Destructed 6 | . . 6 . Prevented . | . . . . Parts Restored . | . . . . Kills | -11 -10 -10 -8 ------- Run | Yrd Mat Sub Scr Combat Hostiles Destroyed 19 | . 13 6 . Guns 7 | . 7 . . AOE 12 | . 6 6 . Classes Destroyed 9 | 2 6 1 . Worker 2 | . 2 . . Tunneler 1 | 1 . . . Hauler 2 | . 2 . . Recycler 2 | 1 1 . . Operator 1 | . 1 . . Watcher 1 | . 1 . . Swarmer 6 | . 6 . . Grunt 9 | . 7 2 . Subdweller 4 | . . 4 . Best Kill Streak 3 | 2 3 2 . Combat Bots Only 3 | . 3 2 . Max Kills in Single Turn 3 | 1 3 1 . Gunslinging . | . . . . Exploded 3 | . 3 1 . Melee . | . . . . Uniques/NPCs Destroyed . | . . . . Combat | -11 -10 -10 -8 -------- Run | Yrd Mat Sub Scr Hostile Shots Fired 48 | . 30 18 . Missed 15 | . 9 6 . Hits 33 | . 21 12 . Projectile 33 | . 21 12 . Critical Strikes 1 | . . 1 . Damage Taken 747 | . 227 520 . Core 136 | . 37 99 . Absorbed by Shields . | . . . . Core Remaining (%) 100 | 100 . . . Volleys Fired 64 | 5 39 20 . Largest 2 | 2 2 1 . Hottest 46 | 40 46 30 . Shots Fired 104 | 10 74 20 . Gun 80 | 10 70 . . Cannon . | . . . . Launcher 24 | . 4 20 . Special . | . . . . Kinetic 80 | 10 70 . . Thermal . | . . . . Explosive 24 | . 4 20 . Electromagnetic . | . . . . Robot Hit Streak 12 | 4 7 12 . Robot Miss Streak 5 | 1 5 2 . Penetration Max . | . . . . Secondary Targets . | . . . . Shots Hit Robots 76 | 6 58 12 . Core Hits 56 | 3 37 16 . Critical Kills . | . . . . Critical Parts Destroyed . | . . . . Critical Strikes . | . . . . Melee Attacks 1 | . . 1 . Impact 1 | . . 1 . Slashing . | . . . . Piercing . | . . . . Sneak Attacks . | . . . . Combat Hostiles . | . . . . Follow-up Attacks . | . . . . Damage Inflicted 2154 | 66 1127 961 . Guns 881 | 66 815 . . Cannons . | . . . . Explosions 1269 | . 308 961 . Melee . | . . . . Ramming 4 | . 4 . . Kinetic 881 | 66 815 . . Thermal . | . . . . Explosive 1269 | . 308 961 . Electromagnetic . | . . . . Impact . | . . . . Slashing . | . . . . Piercing . | . . . . Highest Corruption 4 | . . 4 . Average Corruption 4 | . . 4 . Corruption Purged . | . . . . Corruption Blocked . | . . . . Effects 4 | . . 4 . Message Errors 1 | . . 1 . Matter Fused 1 | . . 1 . Heat Flow Errors 1 | . . 1 . Data Loss (minor) 1 | . . 1 . Overload Shots . | . . . . Overflow Damage . | . . . . Projectiles . | . . . . Explosions . | . . . . Melee . | . . . . Knockbacks . | . . . . Impact . | . . . . Kinetic . | . . . . Secondary . | . . . . Self-Inflicted Damage 33 | . . 33 . Shots 2 | . . 2 . Rammed 1 | . 1 . . Targets Rammed 1 | . 1 . . Kicked . | . . . . Crushed . | . . . . Highest Temperature 109 | . 4 109 . Average Temperature 12 | . 1 55 . Received Heat Transfer 108 | . 69 39 . Siege Activations . | . . . . Martial Activations . | . . . . Shielding Activations . | . . . . Robots Disrupted . | . . . . Combat Hostiles . | . . . . Robots Corrupted . | . . . . Combat Hostiles . | . . . . Parts Fried . | . . . . Impact Corruptions . | . . . . Robots Melted . | . . . . Combat Hostiles . | . . . . Parts Melted . | . . . . Heat Transferred . | . . . . Parts Sabotaged . | . . . . Parts Stolen . | . . . . Parts Stripped . | . . . . Power Chain Reactions . | . . . . Alert | -11 -10 -10 -8 ------- Run | Yrd Mat Sub Scr Maximum Alert Level . | . . . . Low Security (%) 100 | 100 100 . . Level 1 . | . . . . Level 2 . | . . . . Level 3 . | . . . . Level 4 . | . . . . Level 5 . | . . . . High Security . | . . . . Max Security . | . . . . Peak Influence 103 | 5 103 . . Initial . | . . . . Average 19 | . 21 . . Influence Increases 424 | 10 364 50 . Destroy 0b10 Robot/C 300 | . 260 40 . Destroy 0b10 Robot/NC 45 | 10 35 . . Destroy Leader 56 | . 46 10 . Successful Hack 8 | . 8 . . Destroy Structure 15 | . 15 . . Influence Decreases 424 | 10 290 124 . Entered New Map 36 | . . 36 . Time Decay 388 | 10 290 88 . Squads Dispatched 1 | . 1 . . Investigation . | . . . . Extermination . | . . . . Reinforcement 1 | . 1 . . Assault . | . . . . Garrison . | . . . . Intercept . | . . . . Searches Triggered . | . . . . Construction Impeded . | . . . . Haulers Reinforced . | . . . . Active Scanning Responses . | . . . . Cargo Convoy Interrupts . | . . . . Stealth | -11 -10 -10 -8 --------- Run | Yrd Mat Sub Scr Distress Signals 2 | . 2 . . Communications Jammed . | . . . . Distress Signals . | . . . . Times Spotted 30 | . 24 6 . Peak Tracking Total 4 | . 4 2 . Tactical Retreats . | . . . . Traps | -11 -10 -10 -8 ------- Run | Yrd Mat Sub Scr Traps Triggered 1 | . 1 . . Indirectly . | . . . . Trap Hack Attempts . | . . . . Triggered . | . . . . Disarmed . | . . . . Reprogrammed . | . . . . Reused . | . . . . Traps Extracted . | . . . . Installed . | . . . . Triggered . | . . . . Machines | -11 -10 -10 -8 ---------- Run | Yrd Mat Sub Scr Machines Disabled . | . . . . Max in Single Turn . | . . . . Machines Repaired . | . . . . Machines Dismantled . | . . . . Machines Sabotaged . | . . . . Overloaded Fab Kills . | . . . . Hacking | -11 -10 -10 -8 --------- Run | Yrd Mat Sub Scr Machines Accessed 4 | . 4 . . Terminals 4 | . 4 . . Fabricators . | . . . . Repair Stations . | . . . . Recycling Units . | . . . . Scanalyzers . | . . . . Garrison Access . | . . . . Total Hacks 13 | . 13 . . Successful 6 | . 6 . . Failed 7 | . 7 . . Catastrophic . | . . . . Database Lockouts . | . . . . Manual 13 | . 13 . . Terminals 13 | . 13 . . Fabricators . | . . . . Repair Stations . | . . . . Recycling Units . | . . . . Scanalyzers . | . . . . Garrison Access . | . . . . Terminal Hacks 3 | . 3 . . Robot Analysis 1 | . 1 . . Locate Traps 1 | . 1 . . Hauler Manifests 1 | . 1 . . Fabricator Hacks . | . . . . Repair Station Hacks . | . . . . Recycling Unit Hacks . | . . . . Scanalyzer . | . . . . Garrison Access Hacks . | . . . . Unauthorized Hacks 3 | . 3 . . Terminals 3 | . 3 . . Botnet 3 | . 3 . . Fabricators . | . . . . Repair Stations . | . . . . Recycling Units . | . . . . Scanalyzers . | . . . . Garrison Access . | . . . . Data Cores Recovered . | . . . . Used . | . . . . Hacking Detections 4 | . 4 . . Full Trace Events . | . . . . Feedback Events . | . . . . Feedback Blocked . | . . . . Robot Schematics Acquired . | . . . . Robots Built . | . . . . Authchips . | . . . . Time . | . . . . Total Robot Build Rating . | . . . . Part Schematics Acquired . | . . . . Parts Built . | . . . . Authchips . | . . . . Time . | . . . . Total Part Build Rating . | . . . . Part Studies Acquired . | . . . . Parts Repaired . | . . . . Time . | . . . . Parts Recycled . | . . . . Recycled Matter . | . . . . Retrieved Matter . | . . . . Retrieved Components . | . . . . Parts Scanalyzed . | . . . . Part Schematics Acquired . | . . . . Parts Damaged . | . . . . Bothacking | -11 -10 -10 -8 ------------ Run | Yrd Mat Sub Scr Used RIF Installer . | . . . . Robots Hacked . | . . . . Non-combat . | . . . . Combat . | . . . . Robot Hacks Applied . | . . . . Relay Couplers Released . | . . . . Fabnet Peak Effective % . | . . . . Robots Rewired . | . . . . Allies Hacked . | . . . . Hacks Repelled . | . . . . Allies | -11 -10 -10 -8 -------- Run | Yrd Mat Sub Scr Total Allies . | . . . . Largest Group . | . . . . Highest-Rated Group . | . . . . Highest-Rated Ally . | . . . . Total Orders . | . . . . Ally Attacks . | . . . . Total Damage . | . . . . Kills . | . . . . Allies Corrupted . | . . . . Allies Melted . | . . . . X0-1V1 Amusement Gains 23 | . 13 10 . Good Acts 2 | . 1 1 . Bad Acts 3 | . 1 2 . Intel | -11 -10 -10 -8 ------- Run | Yrd Mat Sub Scr Active Infowar (turns) 1010 | 32 978 . . Seismic 1010 | 32 978 . . Robot Analysis Total 1 | . 1 . . Derelict Logs Recovered 1 | . . 1 . Drone Launches . | . . . . Drone Recoveries . | . . . . Exploration | -11 -10 -10 -8 ------------- Run | Yrd Mat Sub Scr Turns Passed 2404 | 129 1397 824 54 Spaces Moved 1139 | 63 568 463 45 Core 4 | 4 . . . Treads 810 | 59 568 183 . Legs . | . . . . Wheels 325 | . . 280 45 Hover . | . . . . Flight . | . . . . Fastest Speed 50 | 50 160 120 120 Average Speed 188 | 153 214 167 120 Slowest Speed 240 | 160 240 240 120 Overloaded Moves . | . . . . Propulsion Burnouts . | . . . . Robots Hopped . | . . . . Potential Cave-ins . | . . . . Cave-ins Triggered 1 | . . 1 . Exploration Rate (%) 30 | 4 84 28 4 Regions Visited 3 Branch Regions 2 Pre-discovered Areas . | . . . . Known Exits Taken . | . . . . Unknown Exits Taken 3 | 1 1 1 . Scrap Searched 4 | . . 2 2 Spaces Dug . | . . . . Terrain Destroyed 90 | . 16 74 . Melee . | . . . . Projectile . | . . . . AOE 90 | . 16 74 . Terrain Rammed . | . . . . Walls Destroyed . | . . . . Machines Disabled . | . . . . Actions | -11 -10 -10 -8 --------- Run | Yrd Mat Sub Scr Total 1285 | 83 669 488 45 Wait 37 | 4 33 . . Move 1136 | 62 567 462 45 Hop . | . . . . Pick Up 22 | 5 17 . . Fast Attach 8 | 7 . 1 . Attach 2 | . . 2 . Detach . | . . . . Swap 11 | . 9 2 . Drop 3 | . 3 . . Fire 64 | 5 39 20 . Melee 1 | . . 1 . Ram . | . . . . Kick . | . . . . Crush 1 | . 1 . . Escape Stasis . | . . . . Rewire . | . . . . Trap . | . . . . Miscellaneous . | . . . . Route ------- -11/Scrapyard -10/Materials (discovered 5 exits: [*Mat x3] / [*Min] / [*Sub]) -10/Subcaves -8/Scraptown History --------- Turn | Location | Event 37 | -11/Scrapyard | Discovered new exit (range 14) 130 | -11/Scrapyard | Entered Materials 304 | -10/Materials | Build established: Mutant 387 | -10/Materials | Discovered new exit (range 16) 480 | -10/Materials | Discovered new exit (range 9) 774 | -10/Materials | Discovered new exit (range 13) 917 | -10/Materials | Discovered new exit (range 15) 1065 | -10/Materials | Discovered new exit (range 13) 1106 | -10/Materials | Prayed at D.C.S.S. Altar Unit 1330 | -10/Materials | Heat dissipation permanently improved by X0-1V1 (+15; -75 max core) 1527 | -10/Materials | Entered Subcaves 1528 | -10/Subcaves | Approached by a straggling Scientist 1797 | -10/Subcaves | Crushed by falling debris 2004 | -10/Subcaves | Core integrity fell below 50% 2259 | -10/Subcaves | Learned Materials trap positions 2351 | -10/Subcaves | Entered Scraptown 2405 | -8/Scraptown | Self-destructed Last Messages --------------- entering the area. Use the C-Scrubber! You bear full responsibility for any potential consequences of non-compliance. Enjoy your stay. 02361_ ANNOUNCEMENT: Unclassified nonregistered visitor in outer Scraptown, temporarily sealing HQ gate. 02373_ Searching scrap... 02373_ Found Axe. 02373_ Found Datajack. 02373_ Found Shotgun. 02373_ Found Hpw. Shotgun. 02373_ Found 50 Matter. 02374_ Acquired 50 matter. 02381_ ANNOUNCEMENT: To all visitors: Defacing our home will be considered a hostile act, tread lightly and respect boundaries. 02393_ Searching scrap... 02393_ Found Enh. Flamer. 02393_ Found 66 Matter. 02393_ Found Imp. Utility Shielding. 02393_ Found 69 Matter. 02394_ Acquired 69 matter. 02395_ Sight range returns to normal. Map ----- +----------------------------------------------------+ | ?????????????????????????????????????????????????? | | ?????????????????????????????????????????????????? | | ?????????????????????????????????????????????????? | | ?????????????????????????????????????????????????? | | ?????????????????????????????????????????????????? | | ?????????????????????????????????????????????????? | | ?????????????????????????????????????????????????? | | ?????????????????????????????? #?????????????????? | | ???????????????????#####?????? #?????????????????? | | ???????????????????#"""#????? #?????????????????? | | ???????????????????#" "#????? #?????????????????? | | ???????????????????# #???? #?????????????????? | | ???????????????????# ##### #?????????????????? | | ???????????????????# ##????????????????? | | ???????????????????# #????????????????? | | ???????????????????# ##????????????????? | | ???????????????????##### ### ##?????????????????? | | ???????????????????????# #??????????????????????? | | ??????????????????###### ######?????????????????? | | ??????????????????#""""" """""#?????????????????? | | ??????????????????#""" " " "#?????????????????? | | ??????????????????#"/[[/ "#?????????????????? | | ??????????????????#""""" """""#?????????????????? | | ??????##??????????###### ######?????????????????? | | ??????# ############# #########"" ???????????? | | ??????# h @ ????????? | | ??????# g ????????? | | ???????????###"""" """"######"""" """""??????????? | | ?????????????#""" !"""#?????? ?????????????? | | ?????????????#""" ""#??????? ??????????????? | | ?????????????#"""" %|"#???????? ??????????????? | | ?????????????#""""" "#?????????"???????????????? | | ?????????????#"""""""""#?????????????????????????? | | ??????????????##########?????????????????????????? | | | | | | | | | | | | | | | | | | | | | | | | | | | | | | | | | +----------------------------------------------------+ Best States ------------- Heat Dissipation 40 Energy Generation 10 Energy Capacity 250 Matter Stores 300 Matter Capacity 300 Sight Range 16 Terrain Scan Density 10 Evasion (%) 40 Recoil Reduction 2 Item Schematics ----------------- None Robot Schematics ------------------ None Fabricated ------------ Nothing Repaired ---------- Nothing Studied --------- None Alien Tech Used ----------------- None Achievements -------------- Chaos Is Inevitable Challenges ------------ None Game ------ Seed VisualComponentSpoofer Manual? 0 Play Time 00:10:11 Cumulative 264.7 hours Start 2026.07.05 @ 01:23:57 End 2026.07.22 @ 21:13:43 Sessions 3 Manual Loads 0 Difficulty Rogue Special Mode None Game No. 139 Rogue 135 Adventurer 4 Explorer 0 Win Type - Total 6 Types 3/0/1/1/0/0/0/1/0/0 Lore% 79 Gallery% 69 Achievement% 55 Wizard Run 0 Options --------- Layout 0 ASCII 0 Keyboard 1 Movement Vi Keybinds 0 Fullscreen 2 Font 24/Crisp Map View 76x50 Zoom Use 0% Tactical HUD 1 Map Filters NONE Filters NONE Steam 1 RUN: b1e04fe8-c0f0-443e-887f-88c18ab992e4